[Event "57th Biel Festival ATO 2024"]
[Site "Biel"]
[Date "2024.07.20"]
[Round "5.15"]
[White "Ribera Caro, Joan"]
[Black "Lachausse, Bruno"]
[Result "1-0"]
[ECO "B22"]
[WhiteElo "1920"]
[BlackElo "1787"]
[Annotator "ChessBase"]
[PlyCount "92"]
[EventDate "2024.07.03"]
[EventType "swiss"]
[EventCountry "SUI"]
[SourceTitle "playchess.com"]
[Source "ChessBase"]
[SourceQuality "1"]
[TimeControl "40/5400+30:1800+30"]

1. e4 {[%emt 0:00:07]} c5 {[%emt 0:00:12]} 2. c3 {[%emt 0:00:06]} d5 {[%emt 0:02:16]} 3. exd5 {[%emt 0:00:53]} Qxd5 {[%emt 0:01:00]} 4. Nf3 {[%emt 0:00:58]} g6 {[%emt 0:00:43]} 5. d4 {[%emt 0:01:43]} cxd4 {[%emt 0:01:11]} 6. Qxd4 {[%emt 0:05:14]} Qxd4 {[%emt 0:00:38]} 7. Nxd4 {[%emt 0:00:17]} a6 {[%emt 0:09:05]} 8. Be2 {[%emt 0:05:41]} Bg7 {[%emt 0:00:51]} 9. Be3 {[%emt 0:01:15]} e5 {[%emt 0:02:31]} 10. Nb3 {[%emt 0:06:49]} Ne7 {[%emt 0:05:05]} 11. N1d2 {[%emt 0:14:45]} Nd7 {[%emt 0:09:58]} 12. Bf3 {[%emt 0:02:22]} Nf5 {[%emt 0:02:41]} 13. Nc4 {[%emt 0:07:41]} Nxe3 {[%emt 0:07:45]} 14. Nxe3 {[%emt 0:03:43]} f5 {[%emt 0:13:34]} 15. O-O {[%emt 0:03:16]} e4 {[%emt 0:04:26]} 16. Be2 {[%emt 0:00:53]} Ne5 {[%emt 0:08:40]} 17. Nd5 {[%emt 0:03:28]} Kf7 {[%emt 0:01:47]} 18. Nb6 {[%emt 0:03:06]} Rb8 {[%emt 0:00:23]} 19. Nxc8 {[%emt 0:00:16]} Rbxc8 {[%emt 0:00:09]} 20. Rad1 {[%emt 0:00:32]} Rhd8 {[%emt 0:02:51]} 21. f4 {[%emt 0:04:50]} Nd7 {[%emt 0:06:57]} 22. Rd5 {[%emt 0:00:52]} Nb6 {[%emt 0:01:43]} 23. Rxd8 {[%emt 0:04:13]} Rxd8 {[%emt 0:00:04]} 24. Na5 {[%emt 0:00:17]} Rd2 {[%emt 0:02:10]} 25. Bc4+ {[%emt 0:00:31]} Kf8 {[%emt 0:05:00]} 26. Rf2 {[%emt 0:00:16]} Nxc4 {[%emt 0:02:36]} 27. Nxc4 {[%emt 0:00:35]} Rd7 {[%emt 0:00:48]} 28. Rd2 {[%emt 0:00:42]} Rxd2 {[%emt 0:00:52]} 29. Nxd2 {[%emt 0:00:09]} Ke7 {[%emt 0:04:36]} 30. Nb1 {[%emt 0:08:07]} b5 {[%emt 0:01:16]} 31. b3 {[%emt 0:00:09]} Kd6 {[%emt 0:00:31]} 32. Kf2 {[%emt 0:00:10]} Kd5 {[%emt 0:01:10]} 33. Ke3 {[%emt 0:00:18]} Bf8 {[%emt 0:01:06]} 34. Nd2 {[%emt 0:02:21]} Bg7 {[%emt 0:00:14]} 35. c4+ {[%emt 0:00:17]} Kc5 {[%emt 0:01:49]} 36. cxb5 {[%emt 0:04:18]} axb5 {[%emt 0:00:12]} 37. a4 {[%emt 0:01:06]} bxa4 {[%emt 0:01:01]} 38. bxa4 {[%emt 0:00:06]} Kb4 {[%emt 0:00:15]} 39. Nxe4 {[%emt 0:00:19]} fxe4 {[%emt 0:00:25]} 40. Kxe4 {[%emt 0:00:07]} Kxa4 {[%emt 0:00:56]} 41. g4 {[%emt 0:30:19]} Kb5 {[%emt 0:30:57]} 42. h4 {[%emt 0:00:31]} Kc6 {[%emt 0:00:00]} 43. f5 {[%emt 0:00:00]} Bf6 {[%emt 0:00:00]} 44. g5 {[%emt 0:00:00]} Bc3 {[%emt 0:00:00]} 45. fxg6 {[%emt 0:00:00]} hxg6 {[%emt 0:00:00]} 46. h5 {[%emt 0:00:00]} gxh5 {[%emt 0:00:00]} 1-0

[Event "57th Biel Festival ATO 2024"]
[Site "Biel"]
[Date "2024.07.20"]
[Round "5.16"]
[White "Kim, Donghan"]
[Black "Dreke, Frank"]
[Result "0-1"]
[ECO "B05"]
[WhiteElo "1746"]
[BlackElo "1915"]
[Annotator "NA"]
[PlyCount "64"]
[EventDate "2024.07.03"]
[EventType "swiss"]
[EventCountry "SUI"]
[SourceTitle "playchess.com"]
[Source "ChessBase"]
[SourceQuality "1"]
[TimeControl "40/5400+30:1800+30"]

1. e4 {[%emt 0:00:14]} Nf6 {[%emt 0:00:00]} 2. e5 {[%emt 0:00:14]} Nd5 {[%emt 0:00:01]} 3. d4 {[%emt 0:00:19]} d6 {[%emt 0:00:03]} 4. Nf3 {[%emt 0:00:21]} Bg4 {[%emt 0:00:19]} 5. Be2 {[%emt 0:00:16]} e6 {[%emt 0:00:06]} 6. exd6 {[%emt 0:04:20]} cxd6 {[%emt 0:01:29]} 7. O-O {[%emt 0:04:24]} Be7 {[%emt 0:00:17]} 8. c4 {[%emt 0:00:30]} Nb6 {[%emt 0:00:44]} 9. Bf4 {[%emt 0:06:58]} O-O {[%emt 0:00:46]} 10. Nc3 {[%emt 0:03:01]} Nc6 {[%emt 0:11:51]} 11. b3 {[%emt 0:08:26]} Bf6 {[%emt 0:26:41]} 12. Be3 {[%emt 0:01:09]} d5 {[%emt 0:01:32]} 13. c5 {[%emt 0:01:28]} Nc8 {[%emt 0:00:04]} 14. Rc1 {[%emt 0:04:58]} N8e7 {[%emt 0:05:03]} 15. h3 {[%emt 0:02:29]} Bxf3 {[%emt 0:00:11]} 16. Bxf3 {[%emt 0:00:10]} Nf5 {[%emt 0:01:42]} 17. Ne2 {[%emt 0:00:44]} Nxe3 {[%emt 0:08:50]} 18. fxe3 {[%emt 0:00:13]} Qc7 {[%emt 0:02:50]} 19. Qd2 {[%emt 0:05:40]} Bg5 {[%emt 0:03:57]} 20. Nc3 {[%emt 0:03:57]} Rad8 {[%emt 0:08:47]} 21. Rce1 {[%emt 0:02:38]} f5 {[%emt 0:01:53]} 22. Re2 {[%emt 0:31:17]} Rf6 {[%emt 0:03:51]} 23. Nb5 {[%emt 0:05:55]} Qb8 {[%emt 0:01:39]} 24. Qe1 {[%emt 0:07:19]} Rh6 {[%emt 0:00:39]} 25. Qd2 {[%emt 0:02:13]} a6 {[%emt 0:05:52]} 26. Nc3 {[%emt 0:01:16]} Rf8 {[%emt 0:03:32]} 27. Rb1 {[%emt 0:01:00]} Rff6 {[%emt 0:03:36]} 28. a3 {[%emt 0:00:52]} Rfg6 {[%emt 0:00:14]} 29. Kh1 {[%emt 0:00:50]} Qg3 {[%emt 0:01:40]} 30. Rf1 {[%emt 0:00:43]} Rxh3+ {[%emt 0:03:45]} 31. Kg1 {[%emt 0:00:45]} Qh2+ {[%emt 0:00:14]} 32. Kf2 {[%emt 0:00:11]} Bh4# {[%emt 0:00:09]} 0-1

[Event "57th Biel Festival ATO 2024"]
[Site "Biel"]
[Date "2024.07.20"]
[Round "5.18"]
[White "Christoffersen, Odd"]
[Black "Wenger, Arejou"]
[Result "0-1"]
[ECO "B40"]
[WhiteElo "1676"]
[BlackElo "1875"]
[Annotator "NA"]
[PlyCount "58"]
[EventDate "2024.07.03"]
[EventType "swiss"]
[EventCountry "SUI"]
[SourceTitle "playchess.com"]
[Source "ChessBase"]
[SourceQuality "1"]
[TimeControl "40/5400+30:1800+30"]

1. e4 {[%emt 0:00:04]} c5 {[%emt 0:00:03]} 2. Nf3 {[%emt 0:00:09]} e6 {[%emt 0:00:05]} 3. g3 {[%emt 0:00:10]} d5 {[%emt 0:00:10]} 4. exd5 {[%emt 0:00:18]} exd5 {[%emt 0:00:06]} 5. d4 {[%emt 0:00:14]} Nf6 {[%emt 0:00:47]} 6. Bg2 {[%emt 0:00:49]} Be7 {[%emt 0:00:32]} 7. Nbd2 {[%emt 0:00:19]} O-O {[%emt 0:01:55]} 8. dxc5 {[%emt 0:00:18]} Bxc5 {[%emt 0:00:24]} 9. O-O {[%emt 0:00:32]} Nc6 {[%emt 0:01:07]} 10. Nb3 {[%emt 0:00:18]} Bb6 {[%emt 0:01:11]} 11. c3 {[%emt 0:00:24]} Bf5 {[%emt 0:03:39]} 12. Bg5 {[%emt 0:03:45]} h6 {[%emt 0:02:36]} 13. Bxf6 {[%emt 0:00:27]} Qxf6 {[%emt 0:00:06]} 14. Qd2 {[%emt 0:07:41]} Be4 {[%emt 0:04:04]} 15. Nfd4 {[%emt 0:01:30]} Rad8 {[%emt 0:08:07]} 16. f3 {[%emt 0:03:59]} Bg6 {[%emt 0:06:06]} 17. Rad1 {[%emt 0:00:29]} Rfe8 {[%emt 0:07:58]} 18. f4 {[%emt 0:02:01]} Be4 {[%emt 0:02:13]} 19. Kh1 {[%emt 0:01:06]} Bxg2+ {[%emt 0:11:33]} 20. Kxg2 {[%emt 0:01:02]} Re4 {[%emt 0:01:24]} 21. Nf3 {[%emt 0:03:51]} d4 {[%emt 0:07:24]} 22. cxd4 {[%emt 0:00:56]} Nxd4 {[%emt 0:00:33]} 23. Nbxd4 {[%emt 0:07:43]} Bxd4 {[%emt 0:01:27]} 24. b3 {[%emt 0:07:50]} Qc6 {[%emt 0:14:04]} 25. a4 {[%emt 0:11:45]} Rde8 {[%emt 0:04:30]} 26. Qd3 {[%emt 0:06:26]} Re2+ {[%emt 0:03:37]} 27. Kh1 {[%emt 0:02:45]} R8e3 {[%emt 0:02:35]} 28. Qxd4 {[%emt 0:00:50]} Rxf3 {[%emt 0:00:38]} 29. Kg1 {[%emt 0:05:35]} Rxf1+ {[%emt 0:00:21]} 0-1

[Event "57th Biel Festival ATO 2024"]
[Site "Biel"]
[Date "2024.07.20"]
[Round "5.19"]
[White "Keymer, Cecilia"]
[Black "Retti, Marco"]
[Result "1/2-1/2"]
[ECO "A52"]
[WhiteElo "1865"]
[BlackElo "1772"]
[Annotator "NA"]
[PlyCount "61"]
[EventDate "2024.07.03"]
[EventType "swiss"]
[EventCountry "SUI"]
[SourceTitle "playchess.com"]
[Source "ChessBase"]
[SourceQuality "1"]
[TimeControl "40/5400+30:1800+30"]

1. d4 {[%emt 0:00:04]} Nf6 {[%emt 0:00:16]} 2. c4 {[%emt 0:00:06]} e5 {[%emt 0:00:06]} 3. dxe5 {[%emt 0:00:17]} Ng4 {[%emt 0:00:12]} 4. e4 {[%emt 0:00:36]} Nxe5 {[%emt 0:00:07]} 5. f4 {[%emt 0:03:30]} Ng6 {[%emt 0:00:06]} 6. Nc3 {[%emt 0:00:30]} Bb4 {[%emt 0:01:34]} 7. Nge2 {[%emt 0:02:32]} Qe7 {[%emt 0:04:50]} 8. a3 {[%emt 0:06:32]} Bxc3+ {[%emt 0:05:55]} 9. Nxc3 {[%emt 0:00:15]} d6 {[%emt 0:02:01]} 10. Be2 {[%emt 0:07:00]} b6 {[%emt 0:04:09]} 11. Qd3 {[%emt 0:05:45]} Bb7 {[%emt 0:01:54]} 12. Be3 {[%emt 0:06:52]} Nd7 {[%emt 0:03:12]} 13. Nd5 {[%emt 0:01:41]} Bxd5 {[%emt 0:03:54]} 14. exd5 {[%emt 0:13:16]} Nc5 {[%emt 0:03:17]} 15. Qc3 {[%emt 0:04:51]} O-O {[%emt 0:04:37]} 16. Bxc5 {[%emt 0:07:42]} bxc5 {[%emt 0:16:20]} 17. g3 {[%emt 0:01:10]} Rae8 {[%emt 0:01:00]} 18. Qd3 {[%emt 0:01:41]} Qe3 {[%emt 0:01:04]} 19. Qxe3 {[%emt 0:01:58]} Rxe3 {[%emt 0:00:09]} 20. Kd2 {[%emt 0:00:51]} Rfe8 {[%emt 0:03:24]} 21. Bd3 {[%emt 0:01:09]} Nf8 {[%emt 0:00:36]} 22. Rhe1 {[%emt 0:03:28]} Rxe1 {[%emt 0:06:59]} 23. Rxe1 {[%emt 0:00:04]} Rxe1 {[%emt 0:00:11]} 24. Kxe1 {[%emt 0:00:02]} g6 {[%emt 0:00:15]} 25. g4 {[%emt 0:02:17]} Nd7 {[%emt 0:03:21]} 26. b4 {[%emt 0:07:14]} f6 {[%emt 0:02:54]} 27. Kd2 {[%emt 0:04:31]} Kf7 {[%emt 0:02:20]} 28. Ke3 {[%emt 0:01:00]} Ke7 {[%emt 0:01:17]} 29. h4 {[%emt 0:00:49]} Kf7 {[%emt 0:03:34]} 30. Kf3 {[%emt 0:07:23]} Kg7 {[%emt 0:04:31]} 31. Kg3 {[%emt 0:02:05]} 1/2-1/2

[Event "57th Biel Festival ATO 2024"]
[Site "Biel"]
[Date "2024.07.20"]
[Round "5.21"]
[White "Jaggy, Enzo"]
[Black "Jordan, Christina"]
[Result "0-1"]
[ECO "D46"]
[WhiteElo "1835"]
[BlackElo "1749"]
[Annotator "NA RC"]
[PlyCount "46"]
[EventDate "2024.07.03"]
[EventType "swiss"]
[EventCountry "SUI"]
[SourceTitle "playchess.com"]
[Source "ChessBase"]
[SourceQuality "1"]
[TimeControl "40/5400+30:1800+30"]

1. d4 {[%emt 0:00:10]} d5 {[%emt 0:00:13]} 2. Nf3 {[%emt 0:00:04]} Nf6 {[%emt 0:00:09]} 3. e3 {[%emt 0:00:19]} c6 {[%emt 0:00:23]} 4. c4 {[%emt 0:00:14]} e6 {[%emt 0:00:29]} 5. Nc3 {[%emt 0:00:28]} Nbd7 {[%emt 0:00:27]} 6. Bd2 {[%emt 0:00:36]} Bd6 {[%emt 0:04:19]} 7. Bd3 {[%emt 0:00:42]} O-O {[%emt 0:01:07]} 8. O-O {[%emt 0:00:47]} Re8 {[%emt 0:01:12]} 9. e4 {[%emt 0:01:56]} e5 {[%emt 0:11:50]} 10. dxe5 {[%emt 0:02:22]} Nxe5 {[%emt 0:00:09]} 11. Nxe5 {[%emt 0:00:09]} Bxe5 {[%emt 0:00:05]} 12. exd5 {[%emt 0:00:37]} cxd5 {[%emt 0:01:24]} 13. cxd5 {[%emt 0:00:32]} Nxd5 {[%emt 0:00:45]} 14. Nxd5 {[%emt 0:00:45]} Qxd5 {[%emt 0:00:06]} 15. Bc3 {[%emt 0:00:21]} Be6 {[%emt 0:10:31]} 16. Bxh7+ {[%emt 0:15:45]} Kxh7 {[%emt 0:00:23]} 17. Qh5+ {[%emt 0:00:11]} Kg8 {[%emt 0:00:07]} 18. Qxe5 {[%emt 0:00:04]} Qxe5 {[%emt 0:00:33]} 19. Bxe5 {[%emt 0:00:07]} Bc4 {[%emt 0:02:10]} 20. Rfc1 {[%emt 0:05:40]} Bxa2 {[%emt 0:04:13]} 21. Bxg7 {[%emt 0:00:27]} Kxg7 {[%emt 0:00:06]} 22. Rxa2 {[%emt 0:00:12]} Rac8 {[%emt 0:03:52]} 23. Rxc8 {[%emt 0:01:25]} Re1# {[%emt 0:00:05]} 0-1

[Event "57th Biel Festival ATO 2024"]
[Site "Biel"]
[Date "2024.07.20"]
[Round "5.22"]
[White "Kim, Yejun"]
[Black "Papaux, Jeremie"]
[Result "1-0"]
[ECO "C88"]
[WhiteElo "1642"]
[BlackElo "1814"]
[Annotator "NA RC"]
[PlyCount "37"]
[EventDate "2024.07.03"]
[EventType "swiss"]
[EventCountry "SUI"]
[SourceTitle "playchess.com"]
[Source "ChessBase"]
[SourceQuality "1"]
[TimeControl "40/5400+30:1800+30"]

1. e4 {[%emt 0:00:05]} e5 {[%emt 0:00:05]} 2. Nf3 {[%emt 0:00:05]} Nc6 {[%emt 0:00:06]} 3. Bb5 {[%emt 0:00:05]} a6 {[%emt 0:00:05]} 4. Ba4 {[%emt 0:00:04]} Nf6 {[%emt 0:00:06]} 5. O-O {[%emt 0:00:05]} Be7 {[%emt 0:00:26]} 6. Re1 {[%emt 0:00:06]} b5 {[%emt 0:00:06]} 7. Bb3 {[%emt 0:00:04]} O-O {[%emt 0:00:05]} 8. a4 {[%emt 0:00:06]} Bb7 {[%emt 0:00:37]} 9. d3 {[%emt 0:00:05]} d6 {[%emt 0:00:00]} 10. Nbd2 {[%emt 0:00:21]} Nd7 {[%emt 0:00:00]} 11. Nf1 {[%emt 0:00:34]} Nc5 {[%emt 0:02:40]} 12. Bd5 {[%emt 0:03:48]} Nxa4 {[%emt 0:05:19]} 13. d4 {[%emt 0:00:26]} Bf6 {[%emt 0:02:11]} 14. Ne3 {[%emt 0:07:38]} Nb6 {[%emt 0:04:42]} 15. dxe5 {[%emt 0:06:30]} Nxd5 {[%emt 0:02:34]} 16. Nxd5 {[%emt 0:02:58]} Nxe5 {[%emt 0:00:30]} 17. Nxe5 {[%emt 0:02:14]} dxe5 {[%emt 0:01:45]} 18. f3 {[%emt 0:08:23]} h6 {[%emt 0:29:47]} 19. g4 {[%emt 0:00:00]} 1-0

[Event "57th Biel Festival ATO 2024"]
[Site "Biel"]
[Date "2024.07.20"]
[Round "5.23"]
[White "Schaer, Bryan"]
[Black "Van Bogaert, Olivier"]
[Result "1-0"]
[ECO "B17"]
[WhiteElo "1803"]
[BlackElo "1815"]
[Annotator "NA"]
[PlyCount "101"]
[EventDate "2024.07.03"]
[EventType "swiss"]
[EventCountry "SUI"]
[SourceTitle "playchess.com"]
[Source "ChessBase"]
[SourceQuality "1"]
[TimeControl "40/5400+30:1800+30"]

1. e4 {[%emt 0:05:03]} c6 {[%emt 0:00:17]} 2. Nf3 {[%emt 0:00:18]} d5 {[%emt 0:00:09]} 3. Nc3 {[%emt 0:00:34]} dxe4 {[%emt 0:00:23]} 4. Nxe4 {[%emt 0:00:16]} Nd7 {[%emt 0:01:03]} 5. Bc4 {[%emt 0:00:56]} e6 {[%emt 0:00:08]} 6. Qe2 {[%emt 0:02:33]} Ndf6 {[%emt 0:01:02]} 7. O-O {[%emt 0:09:09]} Nxe4 {[%emt 0:00:14]} 8. Qxe4 {[%emt 0:00:07]} Nf6 {[%emt 0:00:05]} 9. Qe2 {[%emt 0:00:49]} Be7 {[%emt 0:03:15]} 10. d4 {[%emt 0:01:12]} O-O {[%emt 0:10:08]} 11. Bf4 {[%emt 0:02:34]} Nd5 {[%emt 0:01:59]} 12. Be5 {[%emt 0:02:10]} Bf6 {[%emt 0:03:37]} 13. Rad1 {[%emt 0:05:45]} Bxe5 {[%emt 0:07:45]} 14. dxe5 {[%emt 0:02:01]} Qa5 {[%emt 0:00:53]} 15. Qe4 {[%emt 0:10:49]} Ne7 {[%emt 0:08:54]} 16. Rd3 {[%emt 0:07:49]} Ng6 {[%emt 0:09:34]} 17. Bb3 {[%emt 0:12:38]} Qc7 {[%emt 0:06:12]} 18. Rfd1 {[%emt 0:02:09]} a5 {[%emt 0:04:10]} 19. c3 {[%emt 0:02:36]} a4 {[%emt 0:03:34]} 20. Bc2 {[%emt 0:00:07]} Ra5 {[%emt 0:03:14]} 21. Rd6 {[%emt 0:03:21]} Rd5 {[%emt 0:00:45]} 22. h4 {[%emt 0:07:06]} f5 {[%emt 0:04:13]} 23. Qe3 {[%emt 0:02:51]} Nxe5 {[%emt 0:04:24]} 24. R6xd5 {[%emt 0:00:38]} Nxf3+ {[%emt 0:00:10]} 25. Qxf3 {[%emt 0:00:24]} exd5 {[%emt 0:01:04]} 26. Bxa4 {[%emt 0:00:32]} Re8 {[%emt 0:00:55]} 27. Bc2 {[%emt 0:02:48]} Re5 {[%emt 0:06:07]} 28. Bb3 {[%emt 0:02:03]} Qe7 {[%emt 0:01:11]} 29. Qf4 {[%emt 0:04:25]} Re1+ {[%emt 0:05:15]} 30. Rxe1 {[%emt 0:00:10]} Qxe1+ {[%emt 0:00:07]} 31. Kh2 {[%emt 0:00:04]} Qe7 {[%emt 0:03:14]} 32. Bc2 {[%emt 0:02:16]} Qe6 {[%emt 0:01:56]} 33. Bb3 {[%emt 0:01:18]} Qe4 {[%emt 0:00:21]} 34. Qc7 {[%emt 0:03:08]} Qe8 {[%emt 0:02:36]} 35. Qb8 {[%emt 0:03:05]} Kf8 {[%emt 0:00:29]} 36. Bc2 {[%emt 0:01:14]} h6 {[%emt 0:02:39]} 37. Qf4 {[%emt 0:01:22]} Qe6 {[%emt 0:01:15]} 38. g4 {[%emt 0:00:27]} Qe2 {[%emt 0:02:23]} 39. Bxf5 {[%emt 0:01:03]} Bxf5 {[%emt 0:00:15]} 40. Qxf5+ {[%emt 0:00:03]} Kg8 {[%emt 0:00:18]} 41. Qc8+ {[%emt 0:30:41]} Kh7 {[%emt 0:30:08]} 42. Qf5+ {[%emt 0:00:00]} Kg8 {[%emt 0:00:00]} 43. g5 {[%emt 0:00:00]} hxg5 {[%emt 0:00:00]} 44. hxg5 {[%emt 0:00:00]} Qh5+ {[%emt 0:00:00]} 45. Kg3 {[%emt 0:00:00]} g6 {[%emt 0:00:00]} 46. Qc8+ {[%emt 0:00:00]} Kg7 {[%emt 0:00:00]} 47. Qxb7+ {[%emt 0:00:00]} Kg8 {[%emt 0:00:00]} 48. Qc8+ {[%emt 0:00:00]} Kf7 {[%emt 0:00:00]} 49. Qd7+ {[%emt 0:00:00]} Kf8 {[%emt 0:00:00]} 50. Qg4 {[%emt 0:00:00]} Qh1 {[%emt 0:00:00]} 51. Qf3+ {[%emt 0:00:00]} 1-0

[Event "57th Biel Festival ATO 2024"]
[Site "Biel"]
[Date "2024.07.20"]
[Round "5.24"]
[White "Aegerter, Fabrice"]
[Black "Kim, Sarang"]
[Result "1-0"]
[ECO "B07"]
[WhiteElo "1917"]
[BlackElo "1704"]
[Annotator "NA"]
[PlyCount "65"]
[EventDate "2024.07.03"]
[EventType "swiss"]
[EventCountry "SUI"]
[SourceTitle "playchess.com"]
[Source "ChessBase"]
[SourceQuality "1"]
[TimeControl "40/5400+30:1800+30"]

1. d4 {[%emt 0:00:05]} Nf6 {[%emt 0:00:11]} 2. Bf4 {[%emt 0:00:16]} g6 {[%emt 0:00:12]} 3. Nc3 {[%emt 0:00:34]} Bg7 {[%emt 0:00:35]} 4. e4 {[%emt 0:00:20]} d6 {[%emt 0:00:10]} 5. Qd2 {[%emt 0:00:18]} O-O {[%emt 0:02:23]} 6. O-O-O {[%emt 0:00:22]} a5 {[%emt 0:00:31]} 7. f3 {[%emt 0:03:31]} c6 {[%emt 0:05:03]} 8. g4 {[%emt 0:04:10]} Qc7 {[%emt 0:19:42]} 9. h4 {[%emt 0:07:00]} e5 {[%emt 0:02:01]} 10. dxe5 {[%emt 0:02:27]} dxe5 {[%emt 0:00:08]} 11. Bh6 {[%emt 0:02:00]} Be6 {[%emt 0:03:31]} 12. h5 {[%emt 0:02:09]} Na6 {[%emt 0:01:45]} 13. Bxg7 {[%emt 0:02:37]} Kxg7 {[%emt 0:00:12]} 14. hxg6 {[%emt 0:01:43]} fxg6 {[%emt 0:00:13]} 15. Qh6+ {[%emt 0:01:50]} Kg8 {[%emt 0:03:46]} 16. g5 {[%emt 0:06:35]} Ne8 {[%emt 0:03:39]} 17. Bh3 {[%emt 0:03:22]} Bxh3 {[%emt 0:00:48]} 18. Qxh3 {[%emt 0:03:27]} Rf7 {[%emt 0:18:28]} 19. f4 {[%emt 0:11:01]} Qe7 {[%emt 0:07:04]} 20. Nf3 {[%emt 0:05:53]} exf4 {[%emt 0:04:15]} 21. e5 {[%emt 0:02:59]} Nc5 {[%emt 0:00:50]} 22. Rhe1 {[%emt 0:07:27]} Ne6 {[%emt 0:03:30]} 23. Ne4 {[%emt 0:02:18]} Nc5 {[%emt 0:13:24]} 24. Nf6+ {[%emt 0:11:09]} Kh8 {[%emt 0:00:21]} 25. Nh4 {[%emt 0:07:59]} Rg7 {[%emt 0:02:13]} 26. Nxh7 {[%emt 0:00:37]} Kg8 {[%emt 0:00:30]} 27. Nf6+ {[%emt 0:01:00]} Kf8 {[%emt 0:00:22]} 28. Nxg6+ {[%emt 0:04:37]} Rxg6 {[%emt 0:00:16]} 29. Qh8+ {[%emt 0:00:27]} Kf7 {[%emt 0:00:20]} 30. e6+ {[%emt 0:00:29]} Nxe6 {[%emt 0:00:16]} 31. Rd7 {[%emt 0:00:18]} Qxd7 {[%emt 0:00:35]} 32. Nxd7 {[%emt 0:00:15]} N8c7 {[%emt 0:00:09]} 33. Ne5+ {[%emt 0:00:39]} 1-0

[Event "57th Biel Festival ATO 2024"]
[Site "Biel"]
[Date "2024.07.20"]
[Round "5.25"]
[White "Voet, Dirk"]
[Black "Loeffler, Helmut"]
[Result "1-0"]
[ECO "A07"]
[WhiteElo "1869"]
[BlackElo "1745"]
[Annotator "NA"]
[PlyCount "21"]
[EventDate "2024.07.03"]
[EventType "swiss"]
[EventCountry "SUI"]
[SourceTitle "playchess.com"]
[Source "ChessBase"]
[SourceQuality "1"]
[TimeControl "40/5400+30:1800+30"]

1. g3 {[%emt 0:03:11]} d5 {[%emt 0:00:16]} 2. Bg2 {[%emt 0:00:06]} Nf6 {[%emt 0:00:07]} 3. d3 {[%emt 0:00:00]} e6 {[%emt 0:00:30]} 4. Nf3 {[%emt 0:00:55]} Be7 {[%emt 0:01:34]} 5. O-O {[%emt 0:00:10]} O-O {[%emt 0:01:12]} 6. e4 {[%emt 0:00:25]} Bd7 {[%emt 0:02:39]} 7. e5 {[%emt 0:02:55]} Re8 {[%emt 0:05:29]} 8. h4 {[%emt 0:09:55]} h6 {[%emt 0:37:16]} 9. Bh3 {[%emt 0:16:37]} Kh7 {[%emt 0:00:18]} 10. Bxe6 {[%emt 0:03:03]} Kg6 {[%emt 0:17:31]} 11. g4 {[%emt 0:11:00]} 1-0

[Event "57th Biel Festival ATO 2024"]
[Site "Biel"]
[Date "2024.07.20"]
[Round "5.27"]
[White "Lesniak, Julien"]
[Black "Buntschu, Kurt"]
[Result "1/2-1/2"]
[ECO "B52"]
[WhiteElo "1728"]
[BlackElo "1868"]
[Annotator "NA RC"]
[PlyCount "23"]
[EventDate "2024.07.03"]
[EventType "swiss"]
[EventCountry "SUI"]
[SourceTitle "playchess.com"]
[Source "ChessBase"]
[SourceQuality "1"]
[TimeControl "40/5400+30:1800+30"]

1. e4 {[%emt 0:00:04]} c5 {[%emt 0:00:12]} 2. Nf3 {[%emt 0:00:44]} d6 {[%emt 0:00:10]} 3. Bb5+ {[%emt 0:01:39]} Bd7 {[%emt 0:00:36]} 4. c4 {[%emt 0:01:57]} Nf6 {[%emt 0:00:07]} 5. O-O {[%emt 0:03:22]} g6 {[%emt 0:00:22]} 6. d3 {[%emt 0:00:32]} Bg7 {[%emt 0:00:14]} 7. h3 {[%emt 0:00:42]} O-O {[%emt 0:00:42]} 8. Be3 {[%emt 0:08:17]} Qc7 {[%emt 0:09:12]} 9. Qd2 {[%emt 0:06:54]} e6 {[%emt 0:03:45]} 10. Bh6 {[%emt 0:01:13]} Re8 {[%emt 0:03:39]} 11. Bxg7 {[%emt 0:02:37]} Kxg7 {[%emt 0:02:45]} 12. Re1 {[%emt 0:05:08]} 1/2-1/2

[Event "57th Biel Festival ATO 2024"]
[Site "Biel"]
[Date "2024.07.20"]
[Round "5.28"]
[White "Gafner, Lancelot"]
[Black "Schweizer, Ulrich"]
[Result "1-0"]
[ECO "C99"]
[WhiteElo "1864"]
[BlackElo "1727"]
[Annotator "NA"]
[PlyCount "85"]
[EventDate "2024.07.03"]
[EventType "swiss"]
[EventCountry "SUI"]
[SourceTitle "playchess.com"]
[Source "ChessBase"]
[SourceQuality "1"]
[TimeControl "40/5400+30:1800+30"]

1. e4 {[%emt 0:00:06]} e5 {[%emt 0:00:38]} 2. Nf3 {[%emt 0:00:07]} Nc6 {[%emt 0:00:31]} 3. Bb5 {[%emt 0:00:06]} Nf6 {[%emt 0:00:46]} 4. O-O {[%emt 0:00:23]} a6 {[%emt 0:00:42]} 5. Ba4 {[%emt 0:00:43]} Be7 {[%emt 0:00:52]} 6. Re1 {[%emt 0:00:30]} b5 {[%emt 0:00:44]} 7. Bb3 {[%emt 0:00:05]} d6 {[%emt 0:01:11]} 8. c3 {[%emt 0:00:14]} Na5 {[%emt 0:01:10]} 9. Bc2 {[%emt 0:00:08]} c5 {[%emt 0:00:53]} 10. h3 {[%emt 0:02:16]} O-O {[%emt 0:00:43]} 11. d4 {[%emt 0:00:42]} Qc7 {[%emt 0:01:03]} 12. Nbd2 {[%emt 0:01:38]} cxd4 {[%emt 0:02:08]} 13. cxd4 {[%emt 0:00:15]} Nc6 {[%emt 0:03:02]} 14. Nb3 {[%emt 0:00:50]} a5 {[%emt 0:01:45]} 15. Be3 {[%emt 0:02:55]} a4 {[%emt 0:01:57]} 16. Nbd2 {[%emt 0:00:32]} Bd7 {[%emt 0:01:22]} 17. Rc1 {[%emt 0:01:43]} Rfc8 {[%emt 0:01:15]} 18. Qe2 {[%emt 0:09:17]} Qb7 {[%emt 0:03:17]} 19. d5 {[%emt 0:14:35]} Nb4 {[%emt 0:06:23]} 20. Bb1 {[%emt 0:00:19]} Rxc1 {[%emt 0:02:31]} 21. Rxc1 {[%emt 0:01:47]} Rc8 {[%emt 0:00:38]} 22. Qd1 {[%emt 0:02:04]} Rc7 {[%emt 0:07:37]} 23. a3 {[%emt 0:02:40]} Na6 {[%emt 0:02:27]} 24. Rc2 {[%emt 0:10:19]} Bd8 {[%emt 0:04:59]} 25. Qc1 {[%emt 0:03:15]} Rxc2 {[%emt 0:16:51]} 26. Qxc2 {[%emt 0:00:38]} Qc7 {[%emt 0:06:38]} 27. Qxc7 {[%emt 0:01:41]} Bxc7 {[%emt 0:00:22]} 28. Bd3 {[%emt 0:00:19]} Nc5 {[%emt 0:04:10]} 29. Nxe5 {[%emt 0:10:37]} Nxd3 {[%emt 0:02:11]} 30. Nxd3 {[%emt 0:00:22]} h6 {[%emt 0:06:35]} 31. f3 {[%emt 0:03:48]} Kf8 {[%emt 0:02:50]} 32. Kf2 {[%emt 0:02:44]} Ke8 {[%emt 0:02:29]} 33. Bd4 {[%emt 0:04:02]} Ke7 {[%emt 0:03:07]} 34. Ke3 {[%emt 0:03:46]} Ne8 {[%emt 0:01:19]} 35. Nb4 {[%emt 0:08:19]} Bc8 {[%emt 0:04:42]} 36. Nb1 {[%emt 0:03:13]} f6 {[%emt 0:03:48]} 37. Nc3 {[%emt 0:02:09]} Bd7 {[%emt 0:00:30]} 38. Nc6+ {[%emt 0:01:46]} Bxc6 {[%emt 0:02:39]} 39. dxc6 {[%emt 0:00:07]} Ba5 {[%emt 0:02:00]} 40. Nxb5 {[%emt 0:00:35]} Nc7 {[%emt 0:00:25]} 41. Nxc7 {[%emt 0:31:03]} Bxc7 {[%emt 0:30:02]} 42. Kd3 {[%emt 0:00:24]} Ke6 {[%emt 0:01:27]} 43. Kc4 {[%emt 0:01:09]} 1-0